fUSD/lending_fUSD_20260420
["ID","MTS","AMOUNT","RATE_DAILY","PERIOD"]
[420866481,1776673831778,-500.0,8.899e-05,2]
[420866482,1776673831787,-500.0,8.899e-05,2]
[420866483,1776673831797,-602.23783192,8.899e-05,2]
[420866484,1776673831806,-500.0,8.899e-05,2]
[420866485,1776673831815,-500.0,8.899e-05,2]
[420866486,1776673831825,-500.0,8.899e-05,2]
[420866487,1776673831834,-500.0,8.899e-05,2]
[420866488,1776673831843,-500.0,8.899e-05,2]
[420866489,1776673831853,-641.10457752,8.899e-05,2]
[420866490,1776673831862,-226.88084095,8.899e-05,2]
[420866491,1776673831871,-391.07478362,8.899e-05,2]
[420866492,1776673831881,-230.06398681,8.899e-05,2]
[420866493,1776673831891,-250.0,8.899e-05,2]
[420866494,1776673831901,-467.0,8.9e-05,3]
[420866495,1776673831911,-12193.95506869,8.9e-05,2]
[420866496,1776673831924,-1517.13268707,8.9e-05,2]
[420866497,1776673832015,-2275.9093993,8.9e-05,2]
[420866498,1776673832027,-1498.32,8.9e-05,2]
[420866499,1776673832046,-1460.32375375,8.9e-05,2]
[420866500,1776673832084,-14993.6,8.9e-05,2]
[420866501,1776673832096,-1042.34847306,8.9e-05,2]
[420866525,1776673838706,-979.47501245,8.9e-05,2]
[420866527,1776673838806,-576.16045192,8.9e-05,2]
[420866529,1776673838818,-296.17750592,8.9e-05,2]
[420866580,1776673839298,-12587.39000855,8.9e-05,2]
[420866583,1776673839313,-76717.47464426,8.9e-05,2]
[420866585,1776673839324,-1155.05164175,8.9e-05,2]
[420866588,1776673839343,-1573.85045827,8.9e-05,2]
[420866590,1776673839358,-7109.0014915,8.9e-05,2]
[420866593,1776673839370,-3015.00009,8.9e-05,2]
[420866595,1776673839381,-490.0,8.9e-05,2]
[420866606,1776673839723,-762.65131331,8.9e-05,2]
[420866607,1776673839734,-449.42672656,8.9e-05,2]
[420866608,1776673840256,-669.878833,8.9e-05,2]
[420866609,1776673840267,-513.92439638,8.9e-05,2]
[420866610,1776673840312,-689.72524371,8.9e-05,2]
[420866611,1776673840324,-265.16908496,8.9e-05,2]
[420866617,1776673842762,-377.65200136,8.9e-05,2]
[420866618,1776673842870,-1986.95140351,8.9e-05,2]
[420866622,1776673845621,-6667.47518771,8.9e-05,2]
[420866623,1776673845675,-5282.0404617,8.9e-05,2]
[420866624,1776673845797,-733.71024716,8.9e-05,2]
[420866625,1776673845808,-7144.30225856,8.9e-05,2]
[420866628,1776673846277,-1622.97885145,8.9e-05,2]
[420866629,1776673907320,300.36101483,8.25e-05,2]
[420866630,1776673933214,444.0,8.25e-05,3]
[420866631,1776673986963,422.0,8.25e-05,3]
[420866632,1776674061347,5890.0,8.552e-05,2]
[420866633,1776674112337,155.0,8.552e-05,3]
[420866634,1776674112367,401.0,8.552e-05,3]
[420866635,1776674167729,381.0,8.552e-05,3]
[420866659,1776674226711,362.0,8.552e-05,3]
[420866660,1776674238387,280.48,8.409e-05,2]
[420866661,1776674291859,-482.6128,8.621e-05,2]
[420866662,1776674291887,-5000.0,8.665e-05,2]
[420866663,1776674291909,-4910.57791376,8.709e-05,2]
[420866664,1776674291934,-300.0,8.796e-05,2]
[420866665,1776674291957,-1200.0,8.797e-05,2]
[420866666,1776674291980,-1200.0,8.797e-05,2]
[420866667,1776674292002,-150.0,8.797e-05,2]
[420866668,1776674292024,-300.0,8.797e-05,2]
[420866669,1776674292046,-253.68493684,8.798e-05,2]
[420866670,1776674292073,-21638.1243494,8.798e-05,2]
[420866671,1776674343616,-3195.35955683,8.7e-05,2]
[420866672,1776674345102,344.0,8.552e-05,3]
[420866673,1776674351190,-10000.01,8.7e-05,2]
[420866676,1776674364454,150.0,8.447e-05,2]
[420866677,1776674408360,155.0,8.447e-05,3]
[420866678,1776674420274,340.0,8.447e-05,3]
[420866679,1776674428742,167.0,8.334e-05,2]
[420866681,1776674483983,500.0,8.521e-05,2]
[420866682,1776674525972,323.0,8.447e-05,3]
[420866683,1776674645244,307.0,8.447e-05,3]
[420866686,1776674651500,155.0,8.447e-05,3]
[420866687,1776674705451,292.0,8.447e-05,3]
[420866689,1776674775165,277.0,8.447e-05,3]
[420866690,1776674777359,1500.0,8.502e-05,2]
[420866691,1776674886454,263.0,8.447e-05,3]
[420866692,1776674949973,250.0,8.447e-05,3]
[420866693,1776674963258,10000.01,8.427e-05,2]
[420866694,1776674963282,10000.01,8.427e-05,2]
[420866695,1776674963304,4741.0,8.427e-05,2]
[420866704,1776675010742,153.0,8.447e-05,3]
[420866705,1776675010775,155.0,8.447e-05,3]
[420866706,1776675018462,156.0,8.447e-05,3]
[420866710,1776675031694,-199.94,8.57e-05,2]
[420866711,1776675031703,-207.06,8.57e-05,2]
[420866712,1776675031715,-53.94,8.57e-05,2]
[420866713,1776675031724,-250.0,8.621e-05,2]
[420866714,1776675031734,-500.0,8.673e-05,2]
[420866715,1776675031743,-500.0,8.673e-05,2]
[420866716,1776675031752,-500.0,8.673e-05,2]
[420866717,1776675031761,-316.77936515,8.673e-05,2]
[420866718,1776675031771,-500.0,8.673e-05,2]
[420866719,1776675031780,-500.0,8.673e-05,2]
[420866720,1776675031789,-500.0,8.673e-05,2]
[420866721,1776675031808,-500.0,8.673e-05,2]
[420866722,1776675031819,-500.0,8.673e-05,2]
[420866723,1776675031829,-211.39959994,8.673e-05,2]
[420866724,1776675031838,-1200.0,8.697e-05,2]
[420866725,1776675031848,-300.0,8.697e-05,2]
[420866726,1776675031857,-2927.909,8.698e-05,2]
[420866727,1776675031867,-876137.74045905,8.698e-05,2]
[420866728,1776675031880,-3191.52212512,8.698e-05,2]
[420866729,1776675031892,-11209.90353517,8.698e-05,2]
[420866730,1776675031903,-31077.44475013,8.698e-05,2]
[420866731,1776675031914,-4293.43565038,8.698e-05,2]
[420866732,1776675031926,-816.11829527,8.698e-05,2]
[420866733,1776675031937,-3710.00000002,8.698e-05,2]
[420866734,1776675031948,-2414.2214,8.698e-05,2]
[420866735,1776675031960,-1565.63480144,8.698e-05,2]
[420866736,1776675031974,-6368.32208559,8.698e-05,2]
[420866737,1776675031987,-317.19032142,8.698e-05,2]
[420866738,1776675031998,-400.0,8.698e-05,2]
[420866743,1776675032108,-258.87161287,8.698e-05,2]
[420866746,1776675032124,-9214.38258139,8.698e-05,2]
[420866755,1776675032787,-1557.63357986,8.698e-05,2]
[420866756,1776675038016,-500.0,8.697e-05,2]
[420866757,1776675038028,-500.0,8.697e-05,2]
[420866758,1776675038038,-500.0,8.697e-05,2]
[420866759,1776675038048,-500.0,8.697e-05,2]
[420866760,1776675038059,-500.0,8.697e-05,2]
[420866761,1776675038069,-500.0,8.697e-05,2]
[420866762,1776675038079,-399.50851971,8.697e-05,2]
[420866763,1776675038090,-500.0,8.697e-05,2]
[420866764,1776675038100,-500.0,8.697e-05,2]
[420866765,1776675038110,-500.0,8.697e-05,2]
[420866766,1776675038126,-500.0,8.697e-05,2]
[420866767,1776675038137,-500.0,8.697e-05,2]
[420866768,1776675038147,-500.0,8.697e-05,2]
[420866769,1776675038157,-500.0,8.697e-05,2]
[420866770,1776675038168,-500.0,8.697e-05,2]
[420866771,1776675038179,-500.0,8.697e-05,2]
[420866772,1776675038189,-500.0,8.697e-05,2]
[420866773,1776675038200,-500.0,8.697e-05,2]
[420866774,1776675038211,-66818.09432365,8.698e-05,2]
[420866775,1776675038260,-30236.30166726,8.698e-05,2]
[420866776,1776675038273,-586.98808,8.698e-05,2]
[420866777,1776675038302,-2659.0,8.698e-05,2]
[420866794,1776675038536,5000.0,0.000161,30]
[420866961,1776675043211,-836.8570242,8.698e-05,2]
[420866962,1776675043227,-1019.64210675,8.698e-05,2]
[420866964,1776675043247,-2875.51583003,8.698e-05,2]
[420866968,1776675043678,-380.51299992,8.697e-05,2]
[420866970,1776675045760,-726.65367492,8.697e-05,2]
[420866971,1776675045771,-502.0,8.697e-05,2]
[420866972,1776675045814,-13900.24867576,8.697e-05,2]
[420866973,1776675045976,-4088.5,8.697e-05,2]
[420866974,1776675046031,-2104.0,8.697e-05,2]
[420866975,1776675046042,-478.17549936,8.697e-05,2]
[420867040,1776675085435,209.71,8.428e-05,2]
[420867041,1776675088496,3708.442,8.524e-05,2]
[420867042,1776675088534,196.756,8.524e-05,2]
[420867043,1776675127940,297.0,8.524e-05,3]
[420867044,1776675133929,156.0,8.524e-05,3]
[420867045,1776675146566,20000.0,0.000163,30]
[420867046,1776675172501,5000.0,0.000161,30]
[420867047,1776675200329,10000.0,0.000164,30]
[420867048,1776675229750,10149.0,0.000164,30]
[420867049,1776675272441,-231.0,8.57e-05,2]
[420867050,1776675278285,9538.01,8.086e-05,2]
[420867051,1776675278307,5374.96,8.086e-05,2]
[420867052,1776675305658,156.0,8.086e-05,3]
[420867053,1776675309451,282.0,8.086e-05,3]
[420867054,1776675373943,2116.37,8.009e-05,2]
[420867055,1776675382033,163.0,8.086e-05,3]
[420867056,1776675426816,268.0,8.086e-05,3]
[420867057,1776675436063,319.3054,8.47e-05,2]
[420867058,1776675466423,500.0,8.501e-05,2]
[420867059,1776675491914,254.0,8.086e-05,3]
[420867060,1776675496564,8658.7046,8e-05,2]
[420867061,1776675496587,5660.28299751,8e-05,2]
[420867063,1776675548462,242.0,8.086e-05,3]
[420867064,1776675611534,157.0,8.086e-05,3]
[420867065,1776675611923,230.0,8.086e-05,3]
[420867066,1776675634430,1407.92,8.219e-05,2]
[420867068,1776675665554,218.0,8.086e-05,3]
[420867070,1776675785757,207.0,8.086e-05,3]
[420867071,1776675792270,150.0,0.000165,30]
[420867072,1776675845797,197.0,8.086e-05,3]
[420867073,1776675909401,157.0,8.086e-05,3]
[420867078,1776675942113,150.0,7.816e-05,2]
[420867079,1776675942515,150.0,7.816e-05,2]
[420867080,1776675945782,152.1122056,7.816e-05,2]
[420867081,1776675949600,150.0,7.816e-05,2]
[420867082,1776675949776,150.0,7.816e-05,2]
[420867083,1776675957035,150.0,7.816e-05,2]
[420867084,1776675962520,243.41394637,7.816e-05,2]
[420867085,1776675962564,150.0,7.816e-05,2]
[420867086,1776675962599,150.0,8.251e-05,2]
[420867087,1776675962705,78.28085052,7.816e-05,2]
[420867088,1776675962729,74.82694262,7.816e-05,2]
[420867089,1776675966749,187.0,8.086e-05,3]
[420867090,1776676031346,178.0,8.086e-05,3]
[420867091,1776676047630,6155.495,8.497e-05,2]
[420867092,1776676089002,169.0,8.086e-05,3]
[420867093,1776676091295,-300.0,8.595e-05,2]
[420867094,1776676091323,-1200.0,8.596e-05,2]
[420867095,1776676091350,-300.0,8.596e-05,2]
[420867096,1776676091379,-300.0,8.596e-05,2]
[420867097,1776676091408,-2192.57235329,8.596e-05,2]
[420867098,1776676092276,-250.0,8.596e-05,2]
[420867099,1776676092302,-33078.91,8.597e-05,2]
[420867100,1776676092329,-7878.51764671,8.597e-05,2]
[420867101,1776676098492,5000.01,8.497e-05,2]
[420867102,1776676098519,5000.01,8.497e-05,2]
[420867103,1776676098546,5000.01,8.497e-05,2]
[420867104,1776676098573,5000.01,8.497e-05,2]
[420867105,1776676098599,5000.01,8.497e-05,2]
[420867106,1776676098625,5000.01,8.497e-05,2]
[420867107,1776676098651,5000.01,8.497e-05,2]
[420867108,1776676098677,5000.01,8.497e-05,2]
[420867109,1776676099208,5000.01,8.497e-05,2]
[420867110,1776676099235,5000.01,8.497e-05,2]
[420867111,1776676110435,-3655.89069884,8.497e-05,2]
[420867112,1776676110515,-5000.01,8.497e-05,2]
[420867113,1776676110547,-5000.01,8.497e-05,2]
[420867114,1776676110576,-5000.01,8.497e-05,2]
[420867115,1776676110600,-5000.01,8.497e-05,2]
[420867116,1776676110614,-5000.01,8.497e-05,2]
[420867117,1776676110628,-5000.01,8.497e-05,2]
[420867118,1776676110642,-5000.01,8.497e-05,2]
[420867119,1776676111100,-935.52035722,8.497e-05,2]
[420867120,1776676111114,-10000.01,8.497e-05,2]
[420867121,1776676111144,-10000.01,8.497e-05,2]
[420867122,1776676111163,-10000.01,8.497e-05,2]
[420867123,1776676111184,-10000.01,8.497e-05,2]
[420867124,1776676113844,-10000.01,8.497e-05,2]
[420867125,1776676113859,-9324.66374394,8.497e-05,2]
[420867126,1776676135120,10000.01,7.8e-05,2]
[420867127,1776676135143,10000.01,7.8e-05,2]
[420867128,1776676135165,1872.49,7.8e-05,2]
[420867129,1776676147743,166.0,7.8e-05,3]
[420867130,1776676170451,6542.32959728,8.497e-05,2]
[420867131,1776676170523,945.97189863,8.497e-05,2]
[420867132,1776676204356,473.21850409,7.8e-05,2]
[420867133,1776676204378,479.47149591,7.8e-05,2]
[420867134,1776676210294,156.0,8.497e-05,3]
[420867135,1776676210559,264.0,8.497e-05,3]
[420867140,1776676231925,-261.0,8.591e-05,2]
[420867141,1776676231936,-702.35724449,8.591e-05,2]
[420867142,1776676231945,-300.0,8.595e-05,2]
[420867143,1776676231955,-150.0,8.595e-05,2]
[420867144,1776676231965,-279.11089326,8.595e-05,2]
[420867145,1776676231976,-20.88910674,8.595e-05,2]
[420867146,1776676231987,-1200.0,8.595e-05,2]
[420867147,1776676231997,-250.0,8.595e-05,2]
[420867158,1776676232805,-500.0,8.596e-05,2]
[420867159,1776676232817,-3630.21845483,8.596e-05,2]
[420867160,1776676232837,-1369.78154517,8.596e-05,2]
[420867161,1776676232846,-69713.97105329,8.597e-05,2]
[420867162,1776676232855,-2500.0,8.597e-05,2]
[420867163,1776676232865,-3782.131,8.658e-05,2]
[420867164,1776676232874,-209.02306443,8.673e-05,2]
[420867165,1776676232883,-210.02317478,8.673e-05,2]
[420867166,1776676232892,-200.02207123,8.673e-05,2]
[420867167,1776676232902,-272.30637849,8.685e-05,2]
[420867168,1776676232911,-150.0812423,8.685e-05,2]
[420867169,1776676232920,-162.06714149,8.685e-05,2]
[420867170,1776676232930,-150.0,8.685e-05,2]
[420867171,1776676232939,-151.0,8.694e-05,2]
[420867172,1776676232948,-151.0,8.694e-05,2]
[420867173,1776676232957,-150.0,8.694e-05,21]
[420867174,1776676232966,-158.9121914,8.694e-05,21]
[420867175,1776676232975,-151.0,8.695e-05,2]
[420867176,1776676232984,-151.0,8.695e-05,2]
[420867177,1776676232995,-151.0,8.695e-05,2]
[420867178,1776676233004,-93349.0838082,8.698e-05,2]
[420867179,1776676233014,-5143.6073576,8.698e-05,2]
[420867180,1776676233024,-37962.3323205,8.698e-05,2]
[420867181,1776676233033,-151.0,8.698e-05,2]
[420867182,1776676233042,-151.0,8.698e-05,2]
[420867183,1776676233052,-151.0,8.698e-05,2]
[420867184,1776676233062,-152.942109,8.698e-05,2]
[420867185,1776676233072,-1000.0,8.698e-05,2]
[420867186,1776676233082,-1000.0,8.698e-05,2]
[420867187,1776676233092,-1000.0,8.698e-05,2]
[420867188,1776676233102,-1016.65344243,8.698e-05,2]
[420867189,1776676233111,-699.7114862,8.741e-05,2]
[420867190,1776676233121,-169.99,8.747e-05,2]
[420867191,1776676233131,-2000.0,8.827e-05,2]
[420867192,1776676233141,-200.0,8.853e-05,2]
[420867193,1776676233150,-1576.31,8.853e-05,2]
[420867194,1776676233160,-1063.18,8.853e-05,2]
[420867195,1776676233170,-151.0,8.863e-05,2]
[420867196,1776676233180,-9999.99,8.864e-05,2]
[420867197,1776676233190,-150.99,8.864e-05,2]
[420867198,1776676233199,-9999.99,8.864e-05,2]
[420867199,1776676233209,-299.99,8.864e-05,2]
[420867200,1776676233218,-9999.99,8.864e-05,2]
[420867201,1776676233229,-20035.22,8.864e-05,2]
[420867202,1776676233239,-2120.02,8.864e-05,2]
[420867203,1776676233249,-3572.0,8.864e-05,2]
[420867204,1776676233259,-151.0,8.866e-05,2]
[420867205,1776676233268,-151.0,8.866e-05,2]
[420867206,1776676233278,-500.0,8.877e-05,2]
[420867207,1776676233287,-2793.11187259,8.9e-05,2]
[420867208,1776676233296,-243.91521743,8.906e-05,2]
[420867209,1776676233311,-500.0,8.962e-05,2]
[420867210,1776676233320,-97158.13908816,9e-05,3]
[420867211,1776676233331,-151.0,9e-05,2]
[420867212,1776676233340,-49966.03005159,9.04e-05,2]
[420867213,1776676233350,-264.0,9.208e-05,3]
[420867214,1776676233360,-546.0,9.294e-05,2]
[420867215,1776676233369,-151.0,9.424e-05,2]
[420867216,1776676233379,-250.0,9.45e-05,2]
[420867217,1776676233389,-300.0,9.454e-05,2]
[420867218,1776676233399,-255.0,9.454e-05,2]
[420867219,1776676233408,-420.0,9.454e-05,2]
[420867220,1776676233418,-250.0,9.455e-05,2]
[420867221,1776676233428,-5000.0,9.456e-05,2]
[420867222,1776676233438,-5000.0,9.456e-05,2]
[420867223,1776676233449,-193.0,9.456e-05,2]
[420867224,1776676233459,-5000.0,9.456e-05,2]
[420867225,1776676233468,-195.52411365,9.456e-05,2]
[420867226,1776676233478,-151.0,9.589e-05,2]
[420867227,1776676233488,-151.0,9.589e-05,2]
[420867228,1776676233498,-157.586443,9.589e-05,2]
[420867229,1776676233507,-151.0,9.67e-05,2]
[420867230,1776676233517,-151.0,9.67e-05,2]
[420867231,1776676233527,-173.67,9.8e-05,2]
[420867232,1776676233536,-464.29,9.86e-05,2]
[420867233,1776676233547,-578.20924308,9.875e-05,2]
[420867234,1776676233558,-670.58624095,9.875e-05,2]
[420867235,1776676233568,-8882.6885148,9.875e-05,2]
[420867236,1776676233578,-1328.27659266,9.875e-05,2]
[420867237,1776676233588,-500.0,9.875e-05,2]
[420867238,1776676233597,-200.0,9.875e-05,2]
[420867239,1776676233607,-229.27713943,9.875e-05,2]
[420867240,1776676233616,-743.50770149,9.875e-05,2]
[420867241,1776676233626,-151.0,9.875e-05,2]
[420867242,1776676233636,-174.61919141,9.875e-05,2]
[420867243,1776676233645,-1852.42,9.895e-05,2]
[420867244,1776676233655,-264.0,9.918e-05,3]
[420867245,1776676233664,-6202.72635522,9.93e-05,2]
[420867246,1776676233674,-500.0,9.93e-05,2]
[420867247,1776676233683,-151.0,9.93e-05,2]
[420867248,1776676233692,-2000.0,9.93e-05,2]
[420867249,1776676233703,-1576.31,9.96e-05,2]
[420867250,1776676233712,-163.15,9.961e-05,2]
[420867251,1776676233721,-151.0,9.985e-05,2]
[420867252,1776676233731,-200.0,0.0001,2]
[420867253,1776676233740,-500.0,0.0001,2]
[420867254,1776676233750,-500.0,0.0001,2]
[420867255,1776676233760,-151.0,0.0001004,2]
[420867256,1776676233769,-151.0,0.00010095,2]
[420867257,1776676233779,-151.0,0.0001015,2]
[420867258,1776676233789,-151.0,0.00010205,2]
[420867259,1776676233799,-232.085259,0.00010242,2]
[420867260,1776676233810,-166.67,0.0001026,2]
[420867261,1776676233820,-1265.0,0.00010372,2]
[420867262,1776676233831,-1219.0,0.00010372,2]
[420867263,1776676233841,-927.0,0.00010372,2]
[420867264,1776676233850,-433.0,0.000104,2]
[420867265,1776676233861,-587.0,0.000104,2]
[420867266,1776676233870,-416.0,0.0001041,2]
[420867267,1776676233880,-6030.0,0.0001041,2]
[420867268,1776676233891,-200.0,0.00010423,2]
[420867269,1776676233901,-181.08010149,0.00010423,2]
[420867270,1776676233911,-8470.5412902,0.00010533,2]
[420867271,1776676233922,-200.0,0.00010548,2]
[420867272,1776676233936,-20828.9960198,0.00010568,2]
[420867273,1776676233946,-151.0,0.00010568,2]
[420867274,1776676233956,-907.222304,0.00010568,2]
[420867275,1776676233967,-851.772979,0.00010568,2]
[420867276,1776676233977,-907.222304,0.00010568,2]
[420867277,1776676233988,-907.222304,0.00010568,2]
[420867278,1776676233998,-907.222304,0.00010568,2]
[420867279,1776676234008,-1147.6939334,0.00010568,2]
[420867280,1776676234019,-266.02728319,0.00010584,2]
[420867281,1776676234029,-266.02728319,0.00010584,2]
[420867282,1776676234040,-152.0,0.00010613,7]
[420867283,1776676234050,-622.0,0.0001062,2]
[420867284,1776676234061,-1349.0,0.0001062,2]
[420867285,1776676234071,-1048.57,0.0001062,2]
[420867286,1776676234081,-277.986,0.0001062,2]
[420867287,1776676234092,-152.0,0.00010628,7]
[420867288,1776676234102,-152.0,0.00010628,7]
[420867289,1776676234113,-264.0,0.00010629,3]
[420867290,1776676234123,-152.0,0.00010639,7]
[420867291,1776676234133,-152.0,0.00010639,7]
[420867292,1776676234144,-160.0,0.00010786,2]
[420867293,1776676234154,-150.0,0.000108,2]
[420867294,1776676234164,-504.0,0.00010867,5]
[420867295,1776676234174,-520.0,0.00010867,5]
[420867296,1776676234184,-150.0,0.00010908,21]
[420867297,1776676234195,-150.0,0.00010908,21]
[420867298,1776676234205,-1890.0332346,0.00010942,2]
[420867299,1776676234216,-150.0,0.00010959,2]
[420867300,1776676234226,-3240.0,0.00010959,2]
[420867301,1776676234236,-150.0,0.00010959,2]
[420867302,1776676234246,-200.0,0.00010971,2]
[420867303,1776676234256,-187.78006525,0.00010971,2]
[420867304,1776676234266,-4647.5772176,0.00010985,2]
[420867305,1776676234276,-256.0851311,0.00010985,2]
[420867306,1776676234286,-1219.42,0.00011,2]
[420867307,1776676234296,-304.83,0.00011,2]
[420867308,1776676234306,-304.83,0.00011,2]
[420867309,1776676234316,-208.12,0.00011,2]
[420867310,1776676234325,-208.12,0.00011,2]
[420867311,1776676234335,-151.0,0.00011,2]
[420867312,1776676234344,-151.0,0.00011,2]
[420867313,1776676234354,-150.0,0.00011003,21]
[420867314,1776676234363,-2000.0,0.00011034,2]
[420867315,1776676234373,-150.0,0.00011053,21]
[420867316,1776676234382,-1576.31,0.00011066,2]
[420867317,1776676234392,-200.0,0.00011096,2]
[420867318,1776676234401,-202.989673,0.00011234,2]
[420867319,1776676234411,-2966.754,0.00011269,2]
[420867320,1776676234420,-157.405,0.00011269,2]
[420867321,1776676234430,-264.0,0.0001134,3]
[420867322,1776676234440,-150.0,0.000114,2]
[420867323,1776676234450,-5530.0,0.000114,5]
[420867324,1776676234459,-736.0,0.0001144,2]
[420867325,1776676234469,-823.0,0.0001144,2]
[420867326,1776676234478,-7295.12377389,0.00011443,2]
[420867327,1776676234487,-21474.34500913,0.00011451,2]
[420867328,1776676234497,-2505.55,0.00011507,2]
[420867329,1776676234507,-1407.92,0.00011507,2]
[420867330,1776676234516,-194.72792766,0.00011519,2]
[420867331,1776676234526,-163.15,0.00011621,2]
[420867332,1776676234536,-200.0,0.00011644,2]
[420867333,1776676234546,-3435.0,0.00011722,2]
[420867334,1776676234556,-703.21786179,0.0001176,2]
[420867335,1776676234566,-162.27127,0.0001188,2]
[420867336,1776676234576,-162.27128,0.0001188,2]
[420867337,1776676234585,-7489.32648294,0.000119,2]
[420867338,1776676234595,-25000.0,0.000119,2]
[420867339,1776676234604,-18788.34126118,0.000119,2]
[420867340,1776676234614,-151.0,0.000119,2]
[420867341,1776676234623,-2000.0,0.00011904,2]
[420867342,1776676234633,-907.222304,0.00011945,2]
[420867343,1776676234643,-907.222304,0.00011945,2]
[420867344,1776676234652,-907.222304,0.00011945,2]
[420867345,1776676234661,-907.222304,0.00011945,2]
[420867346,1776676234670,-250.0,0.00011945,2]
[420867347,1776676234679,-400.0,0.00011945,2]
[420867348,1776676234689,-500.70074508,0.00011973,2]
[420867349,1776676234699,-500.0,0.00011973,2]
[420867350,1776676234708,-210.02317478,0.00011973,2]
[420867351,1776676234718,-500.0,0.00011973,2]
[420867352,1776676234727,-500.0,0.00011973,2]
[420867353,1776676234737,-155.0,0.00011999,2]
[420867354,1776676234747,-155.0,0.00011999,2]
[420867355,1776676234756,-50000.0,0.00012,2]
[420867356,1776676234766,-265.0,0.00012,5]
[420867357,1776676234776,-250.0,0.00012,2]
[420867358,1776676234785,-239700.60202339,0.00012,2]
[420867359,1776676234800,-173693.52162088,0.00012,2]
[420867360,1776676234812,-109474.30211535,0.00012,2]
[420867361,1776676234833,-188519.28896828,0.00012,2]
[420867362,1776676234849,-1254.41808677,0.00012,2]
[420867363,1776676234861,-957.48771877,0.00012,2]
[420867364,1776676234878,-352237.24225151,0.00012,2]
[420867366,1776676238049,-746.96961474,0.00010568,2]
[420867367,1776676238103,-104.80336426,0.00010568,2]
[420867368,1776676238113,-468.81190786,0.0001176,2]
[420867369,1776676238123,-2003.0,0.000119,2]
[420867370,1776676238135,-851.772979,0.00011945,2]
[420867371,1776676238144,-851.772979,0.00011945,2]
[420867372,1776676238154,-1411.74676988,0.00012,2]
[420867373,1776676238166,-4735.40854725,0.00012,2]
[420867374,1776676238337,-884.38842887,0.00012,2]
[420867375,1776676238349,-1916.66577274,0.00012,2]
[420867376,1776676238427,-75717.60284336,0.00012,2]
[420867480,1776676243413,-851.772979,0.00010568,2]
[420867481,1776676243423,-312.5412719,0.0001176,2]
[420867482,1776676243432,-360.94964418,0.00011945,2]
[420867483,1776676243451,-490.82333482,0.00011945,2]
[420867484,1776676243461,-1244.45581703,0.00012,2]
[420867485,1776676243472,-3532.0,0.00012,2]
[420867486,1776676243496,-220725.5648,0.00012,2]
[420867487,1776676244200,-851.772979,0.00010568,2]
[420867488,1776676244210,-485.94395304,0.0001075,2]
[420867494,1776676246035,-894.91738156,0.0001075,2]
[420867495,1776676246404,-2399.1386654,0.0001075,2]
[420867496,1776676246413,-95.88726083,0.0001176,2]
[420867497,1776676246425,-112.4735871,0.0001176,2]
[420867498,1776676246434,-851.772979,0.00011945,2]
[420867499,1776676246443,-3627.6237332,0.00012,2]
[420867597,1776676283386,500.0,8.496e-05,2]
[420867598,1776676305589,300.36101483,7.89e-05,2]
[420867599,1776676324650,9699.64898517,8.497e-05,2]
[420867600,1776676324675,10000.01,8.497e-05,2]
[420867601,1776676324700,10000.01,8.497e-05,2]
[420867602,1776676324724,10000.01,8.497e-05,2]
[420867603,1776676324749,10000.01,8.497e-05,2]
[420867604,1776676324773,10000.01,8.497e-05,2]
[420867605,1776676324797,10000.01,8.497e-05,2]
[420867606,1776676324822,10000.01,8.497e-05,2]
[420867607,1776676324846,10000.01,8.497e-05,2]
[420867608,1776676324871,10000.01,8.497e-05,2]
[420867609,1776676326925,490.0,7.89e-05,3]
[420867610,1776676335281,157.0,7.89e-05,3]
[420867611,1776676337519,-9341.54971249,8.497e-05,2]
[420867612,1776676337646,-10000.01,8.497e-05,2]
[420867613,1776676337753,-10000.01,8.497e-05,2]
[420867614,1776676338029,-10000.01,8.497e-05,2]
[420867615,1776676338140,-10000.01,8.497e-05,2]
[420867616,1776676338275,-10000.01,8.497e-05,2]